bitfinex/quotes_BTCUSD_20260125
["timestamp","ask_amount","ask_price","bid_price","bid_amount"]
[1769366906120,0.01146013,87259.0,87252.0,0.00047297]
[1769366906327,0.01146026,87258.0,87252.0,0.00047297]
[1769366906536,0.01145974,87262.0,87252.0,0.00047297]
[1769366906787,0.01145908,87267.0,87252.0,0.00047297]
[1769366906972,0.01145842,87272.0,87252.0,0.00047297]
[1769366907185,0.01145869,87270.0,87252.0,0.31433143]
[1769366907397,0.01145921,87266.0,87252.0,0.31342364]
[1769366907617,0.01145895,87268.0,87252.0,0.31342364]
[1769366907822,0.01145856,87271.0,87252.0,0.31342364]
[1769366908029,0.01145869,87270.0,87252.0,0.31342364]
[1769366908232,0.01145829,87273.0,87258.0,0.10091454]
[1769366908454,0.01145777,87277.0,87259.0,0.10091454]
[1769366908669,0.01145737,87280.0,87263.0,0.31385846]
[1769366908807,0.00047297,87280.0,87263.0,0.29735846]
[1769366909218,0.00047297,87280.0,87265.0,1.11840293]
[1769366909471,0.00047297,87280.0,87266.0,0.31385846]
[1769366910106,0.01145803,87275.0,87245.0,1.11840293]
[1769366910307,0.01145842,87272.0,87251.0,0.10091454]
[1769366910598,0.01145856,87271.0,87251.0,0.10091454]
[1769366910823,0.01145829,87273.0,87252.0,0.31385846]
[1769366911047,0.01145842,87272.0,87252.0,0.31385846]
[1769366911233,0.01145777,87277.0,87252.0,0.31385846]
[1769366911436,0.01145764,87278.0,87253.0,0.31385846]
[1769366911736,0.06874367,87281.0,87253.0,0.31385846]
[1769366911737,0.01145724,87281.0,87257.0,0.31385846]
[1769366911946,0.01145698,87283.0,87261.0,0.31385846]
[1769366912180,0.01193034,87280.0,87262.0,0.31385846]
[1769366912358,0.01145803,87275.0,87262.0,0.31385846]
[1769366912534,0.01145829,87273.0,87262.0,0.31385846]
[1769366912736,0.01145803,87275.0,87262.0,0.31385846]
[1769366912962,0.01043473,87275.0,87262.0,0.31385846]
[1769366913203,0.01084418,87274.0,87262.0,0.31385846]
[1769366913478,0.06813514,87274.0,87262.0,0.31385846]
[1769366913706,0.01145777,87277.0,87262.0,0.31385846]
[1769366913859,0.01145764,87278.0,87262.0,0.31385846]
[1769366914034,0.01145777,87277.0,87262.0,0.31385846]
[1769366914238,0.01145816,87274.0,87262.0,0.31385846]
[1769366914480,0.01145829,87273.0,87262.0,0.31385846]
[1769366914680,0.01145829,87273.0,87251.0,0.10091454]
[1769366914681,0.01145842,87272.0,87251.0,0.10091454]
[1769366914923,0.01145908,87267.0,87255.0,0.10091454]
[1769366915135,0.06985352,87255.0,87233.0,0.2781099]
[1769366915353,0.06985352,87255.0,87223.0,0.04128]
[1769366915354,0.01146263,87240.0,87223.0,0.04128]
[1769366915559,0.01146236,87242.0,87223.0,0.04128]
[1769366915560,0.01146355,87233.0,87223.0,0.3193899]
[1769366915760,0.01146355,87233.0,87223.0,0.04128]
[1769366915962,0.01146342,87234.0,87223.0,0.04128]
[1769366916175,0.01360544,87246.0,87223.0,0.04128]
[1769366916381,0.05731584,87236.0,87223.0,0.04128]
[1769366916534,0.01146342,87234.0,87223.0,0.04142178]
[1769366916736,0.01360544,87246.0,87223.0,0.04142178]
[1769366916940,0.01146355,87233.0,87223.0,0.04142178]
[1769366917142,0.01146342,87234.0,87223.0,0.04142178]
[1769366917361,0.02194494,87239.0,87223.0,0.04142178]
[1769366917543,0.01146407,87229.0,87223.0,0.04142178]
[1769366917745,0.01146447,87226.0,87223.0,0.04142178]
[1769366917945,0.05732301,87225.0,87223.0,0.04142178]
[1769366918142,0.05732361,87225.0,87223.0,0.04142178]
[1769366918371,0.01146447,87226.0,87223.0,0.04142178]
[1769366919418,0.37654373,87250.0,87223.0,0.04142178]
[1769366919761,0.01146355,87233.0,87226.0,0.00891073]
[1769366919889,0.01146368,87232.0,87223.0,0.04142178]
[1769366920095,0.22923015,87249.0,87223.0,0.04142178]
[1769366920295,0.01146171,87247.0,87226.0,0.2781099]
[1769366920502,0.01146158,87248.0,87227.0,0.2781099]
[1769366920711,0.01146039,87257.0,87248.0,1e-08]
[1769366920908,0.01146013,87259.0,87248.0,1e-08]
[1769366921228,0.01146052,87256.0,87248.0,1e-08]
[1769366921601,0.01146026,87258.0,87248.0,1e-08]
[1769366921805,0.01145987,87261.0,87245.0,0.27806991]
[1769366922003,0.06876199,87258.0,87237.0,0.2781099]
[1769366922188,0.01146052,87256.0,87238.0,0.2781099]
[1769366922409,0.37654373,87270.0,87238.0,0.2781099]
[1769366922613,0.01146158,87248.0,87227.0,1.14148097]
[1769366922966,0.01146158,87248.0,87217.0,0.22028434]
[1769366922967,0.01146236,87242.0,87229.0,0.2781099]
[1769366923121,0.01146263,87240.0,87229.0,0.2781099]
[1769366923332,0.01146171,87247.0,87229.0,0.2781099]
[1769366923704,0.01146236,87242.0,87229.0,0.2781099]
[1769366924116,0.05731397,87239.0,87229.0,0.2781099]
[1769366924321,0.05731777,87233.0,87223.0,0.00014178]
[1769366924525,0.01146342,87234.0,87223.0,0.00014178]
[1769366924753,0.01146276,87239.0,87223.0,0.00014178]
[1769366925241,0.22920965,87257.0,87223.0,0.00014178]
[1769366925428,0.01146158,87248.0,87230.0,0.2781099]
[1769366925631,0.01146302,87237.0,87223.0,0.00014178]
[1769366925813,0.01146355,87233.0,87223.0,0.00014178]
[1769366926026,0.01146276,87239.0,87223.0,0.00014178]
[1769366926226,0.01146315,87236.0,87223.0,0.00014178]
[1769366926443,0.01146328,87235.0,87223.0,0.00014178]
[1769366926659,0.01146407,87229.0,87223.0,0.00014178]
[1769366926871,0.01146394,87230.0,87223.0,0.00014178]
[1769366927079,0.01146407,87229.0,87223.0,0.00014178]
[1769366927288,0.01146394,87230.0,87223.0,0.00014178]
[1769366927495,0.0114642,87228.0,87223.0,0.00014178]
[1769366927702,0.01146434,87227.0,87223.0,0.00014178]
[1769366927895,0.01146407,87229.0,87223.0,0.00014178]
[1769366928106,0.0114642,87228.0,87223.0,0.00014178]
[1769366928330,0.01146434,87227.0,87223.0,0.00014178]
[1769366928552,0.01146473,87224.0,87209.0,0.21736]
[1769366928758,0.01146526,87220.0,87209.0,0.21736]
[1769366929008,0.00014175,87220.0,87209.0,0.21736]
[1769366929211,0.01146473,87224.0,87210.0,0.2781099]
[1769366929429,0.0114646,87225.0,87210.0,0.27825165]
[1769366929622,0.01146447,87226.0,87210.0,0.27825165]
[1769366929824,0.0114646,87225.0,87211.0,0.2781099]
[1769366930074,0.01146407,87229.0,87211.0,0.2781099]
[1769366930278,0.01146368,87232.0,87212.0,0.2781099]
[1769366930387,0.06877977,87235.0,87212.0,0.2781099]
[1769366930593,0.05731714,87234.0,87212.0,0.2781099]
[1769366930820,0.01146355,87233.0,87212.0,0.2781099]
[1769366931228,0.01146447,87226.0,87212.0,0.2781099]
[1769366931442,0.01146473,87224.0,87212.0,0.2781099]
[1769366931644,0.01146473,87224.0,87210.0,0.00014175]
[1769366931844,0.0114642,87228.0,87159.0,0.45958854]
[1769366931845,0.01146683,87208.0,87177.0,0.01147091]
[1769366932092,0.01146854,87195.0,87179.0,0.2781099]
[1769366932740,0.01146657,87210.0,87179.0,0.2781099]
[1769366932950,0.01146644,87211.0,87188.0,0.2781099]
[1769366933170,0.01146342,87234.0,87201.0,0.28957765]
[1769366933376,0.01146315,87236.0,87207.0,0.2781099]
[1769366933594,0.60577143,87250.0,87212.0,0.2781099]
[1769366933595,0.01146197,87245.0,87212.0,0.2781099]
[1769366933803,0.01146355,87233.0,87212.0,0.2781099]
[1769366934016,0.00799278,87241.0,87212.0,0.2781099]
[1769366934017,0.01146289,87238.0,87212.0,0.2781099]
[1769366934221,0.01146407,87229.0,87212.0,0.2781099]
[1769366934427,0.01146381,87231.0,87205.0,0.4955099]
[1769366934789,0.00014178,87231.0,87205.0,0.2174]
[1769366934997,0.00014178,87231.0,87211.0,0.2781099]
[1769366935459,0.0114646,87225.0,87211.0,0.2781099]
[1769366935652,0.01160559,87231.0,87211.0,0.2781099]
[1769366936234,0.00014178,87231.0,87211.0,0.2781099]
[1769366937021,0.01146394,87230.0,87211.0,0.2781099]
[1769366937223,0.00014178,87231.0,87211.0,0.2781099]
[1769366937644,0.00014178,87231.0,87210.0,0.28957647]
[1769366937847,0.00014178,87231.0,87211.0,0.2781099]
[1769366938767,0.0100863,87234.0,87211.0,0.2781099]
[1769366938974,0.01146355,87233.0,87212.0,0.2781099]
[1769366939178,0.01146394,87230.0,87212.0,0.2781099]
[1769366939538,0.06740371,87234.0,87212.0,0.2781099]
[1769366939539,0.0100863,87234.0,87212.0,0.2781099]
[1769366939714,0.01146381,87231.0,87212.0,0.2781099]
[1769366940237,0.05731578,87236.0,87212.0,0.2781099]
[1769366940472,0.01146381,87231.0,87212.0,0.2781099]
[1769366940685,0.0114646,87225.0,87212.0,0.2781099]
[1769366940914,0.01146473,87224.0,87211.0,0.00014178]
[1769366941338,0.01146552,87218.0,87211.0,0.00014178]
[1769366941546,0.05733155,87212.0,87211.0,1.97e-05]
[1769366941753,0.01933744,87218.0,87195.0,0.2781099]
[1769366941754,0.00985821,87205.0,87195.0,0.2781099]
[1769366941962,0.00012208,87211.0,87197.0,1.14148097]
[1769366942171,0.01763155,87232.0,87201.0,1.14148097]
[1769366942380,0.01146434,87227.0,87204.0,0.2781099]
[1769366942582,0.01146473,87224.0,87204.0,0.2781099]
[1769366943004,0.01146342,87234.0,87208.0,0.01146683]
[1769366943208,0.01146381,87231.0,87205.0,0.23883458]
[1769366943414,0.01146394,87230.0,87207.0,0.23883458]
[1769366943623,0.01146342,87234.0,87204.0,0.01146736]
[1769366943624,0.01146328,87235.0,87208.0,1.15144205]
[1769366943836,0.01146368,87232.0,87211.0,0.23883458]
[1769366944050,0.01146302,87237.0,87211.0,0.25030102]
[1769366944269,0.25616276,87239.0,87212.0,0.23883458]
[1769366944479,0.01146289,87238.0,87214.0,0.23883458]
[1769366944945,0.01146302,87237.0,87214.0,0.23883458]
[1769366945107,0.01146342,87234.0,87214.0,0.23883458]
[1769366945284,0.01146342,87234.0,87210.0,0.37654373]
[1769366945285,0.01146315,87236.0,87211.0,0.23883458]
[1769366945488,0.0573221,87227.0,87211.0,0.23883458]
[1769366945694,0.01146407,87229.0,87211.0,0.23883458]
[1769366945961,0.0114642,87228.0,87211.0,0.23883458]
[1769366946083,0.01146368,87232.0,87207.0,0.23883458]
[1769366946297,0.01146368,87232.0,87209.0,0.23883458]
[1769366946705,0.01146289,87238.0,87211.0,0.25030102]
[1769366946902,0.01146302,87237.0,87213.0,0.23883458]
[1769366947151,0.01146315,87236.0,87213.0,0.23883458]
[1769366947352,0.01146315,87236.0,87211.0,0.23883458]
[1769366947594,0.01146315,87236.0,87213.0,0.23883458]
[1769366947911,0.01146394,87230.0,87213.0,0.23883458]
[1769366948121,0.01146315,87236.0,87213.0,0.23883458]
[1769366948337,0.01146302,87237.0,87213.0,0.23883458]
[1769366948541,0.01146328,87235.0,87211.0,0.23883458]
[1769366948778,0.01146315,87236.0,87214.0,1.15144205]
[1769366948983,0.01146328,87235.0,87215.0,0.23883458]
[1769366949419,0.01146289,87238.0,87215.0,0.23883458]
[1769366949420,0.01146381,87231.0,87215.0,0.23883458]
[1769366949866,0.01146368,87232.0,87215.0,0.23883458]
[1769366950067,0.02921596,87233.0,87215.0,0.23883458]
[1769366950276,0.01146315,87236.0,87215.0,0.23883458]
[1769366950478,0.01146342,87234.0,87215.0,0.23883458]
[1769366950685,0.08653346,87234.0,87215.0,0.23883458]
[1769366950914,0.01146368,87232.0,87212.0,0.23883458]
[1769366951326,0.01146381,87231.0,87212.0,0.23883458]
[1769366951534,0.01146499,87222.0,87214.0,0.23883458]
[1769366951742,0.01146473,87224.0,87214.0,0.23883458]
[1769366951743,0.01146512,87221.0,87214.0,0.23883458]
[1769366951963,0.01146657,87210.0,87203.0,0.000115]
[1769366952187,0.0114667,87209.0,87203.0,0.000115]
[1769366952397,0.01146749,87203.0,87189.0,0.17612]
[1769366952612,0.05734353,87194.0,87173.0,1.15144205]
[1769366952824,0.01146854,87195.0,87177.0,0.23999835]
[1769366953048,0.02609229,87198.0,87177.0,0.23883458]
[1769366953049,0.01146828,87197.0,87177.0,0.23883458]
[1769366953271,0.01160997,87197.0,87178.0,0.00105091]
[1769366953483,0.00014169,87197.0,87181.0,0.23883458]
[1769366953713,0.01146723,87205.0,87180.0,1.15144205]
[1769366953714,0.01146631,87212.0,87198.0,0.23883458]
[1769366953923,0.01146657,87210.0,87198.0,0.23883458]
[1769366954130,0.01146631,87212.0,87198.0,0.23883458]
[1769366954339,0.01146618,87213.0,87198.0,0.23883458]
[1769366954555,0.01146604,87214.0,87198.0,0.23883458]
[1769366954829,0.01146749,87203.0,87181.0,1.15144205]
[1769366955039,0.0114671,87206.0,87186.0,0.22912421]
[1769366955242,0.01146736,87204.0,87188.0,0.22912421]
[1769366955458,0.01146749,87203.0,87188.0,0.22912421]
[1769366955669,0.01146802,87199.0,87188.0,0.22912421]
[1769366956108,0.01146762,87202.0,87188.0,0.22912421]
[1769366956326,0.01146736,87204.0,87188.0,0.22912421]
[1769366956526,0.0114671,87206.0,87188.0,0.22912421]
[1769366956527,0.01146723,87205.0,87188.0,0.22912421]
[1769366956729,0.0114671,87206.0,87188.0,0.22912421]
[1769366956943,0.02602246,87212.0,87188.0,0.22912421]
[1769366957153,0.01146604,87214.0,87190.0,0.22912421]
[1769366957362,0.01146604,87214.0,87193.0,1.10317038]
[1769366957363,0.01146631,87212.0,87193.0,1.10317038]
[1769366957570,0.01146565,87217.0,87196.0,0.22912421]
[1769366957778,0.01146434,87227.0,87199.0,0.10091454]
[1769366957995,0.01146328,87235.0,87204.0,0.24059157]
[1769366958206,0.01146394,87230.0,87208.0,0.22912421]
[1769366958427,0.01146368,87232.0,87207.0,1.10317038]
[1769366958670,0.01146381,87231.0,87214.0,0.22912421]
[1769366958889,0.01146434,87227.0,87214.0,0.22896612]
[1769366959101,0.0114642,87228.0,87214.0,0.22896612]
[1769366959525,0.01160602,87228.0,87214.0,0.22896612]
[1769366959824,0.01146447,87226.0,87214.0,0.22896612]
[1769366960043,0.0114646,87225.0,87214.0,0.22896612]
[1769366960250,0.01146447,87226.0,87214.0,0.22896612]
[1769366960454,0.01146486,87223.0,87214.0,0.22896612]
[1769366960597,0.01146473,87224.0,87214.0,0.22896612]
[1769366960799,0.01146499,87222.0,87214.0,0.22896612]
[1769366961202,0.01146486,87223.0,87214.0,0.22896612]
[1769366961433,0.01146499,87222.0,87214.0,0.22896612]
[1769366961628,0.01146447,87226.0,87214.0,0.22896612]
[1769366961839,0.00014182,87228.0,87214.0,0.22896612]
[1769366962253,0.01146434,87227.0,87214.0,0.22896612]
[1769366962390,0.00014182,87228.0,87214.0,0.22896612]
[1769366962592,0.00014182,87228.0,87215.0,0.22912421]
[1769366962800,0.01146144,87249.0,87228.0,0.00014182]
[1769366963007,0.11442903,87248.0,87225.0,1.10317038]
[1769366963224,0.0114621,87244.0,87226.0,0.22912421]
[1769366963638,0.06877368,87243.0,87226.0,0.22912421]
[1769366963842,0.01146236,87242.0,87226.0,0.22912421]
[1769366964065,0.01146223,87243.0,87226.0,0.22912421]
[1769366964268,0.01146184,87246.0,87227.0,0.22912421]
[1769366964472,0.01146263,87240.0,87227.0,0.22912421]
[1769366964676,0.01146236,87242.0,87227.0,0.22912421]
[1769366964879,0.01146276,87239.0,87225.0,0.00014182]
[1769366965094,0.01146407,87229.0,87225.0,0.00014182]
[1769366965303,0.0001417,87224.0,87200.0,1.14445038]
[1769366965524,0.00028344,87224.0,87205.0,1.10317038]
[1769366965728,0.00014174,87224.0,87206.0,0.22912421]
[1769366966141,0.00014174,87224.0,87213.0,0.10091454]
[1769366966344,0.01146171,87247.0,87213.0,0.11238072]
[1769366966549,0.06877268,87244.0,87218.0,1.10317038]
[1769366966754,0.01146236,87242.0,87222.0,1.10317038]
[1769366966972,0.01146223,87243.0,87223.0,0.22912421]
[1769366967174,0.0114625,87241.0,87223.0,0.22912421]
[1769366967388,0.01146394,87230.0,87223.0,0.22912421]
[1769366967633,0.88084415,87240.0,87213.0,0.00014174]
[1769366967634,0.01146381,87231.0,87214.0,0.22912421]
[1769366967837,0.01146407,87229.0,87214.0,0.22912421]
[1769366968052,0.0114646,87225.0,87214.0,0.22912421]
[1769366968653,0.01146407,87229.0,87214.0,0.22912421]
[1769366968888,0.01146434,87227.0,87214.0,0.22912421]
[1769366969229,0.01146447,87226.0,87214.0,0.22912421]
[1769366970060,0.01146447,87226.0,87214.0,0.22896614]
[1769366970308,0.01146434,87227.0,87214.0,0.22896614]
[1769366970517,0.01146447,87226.0,87214.0,0.22896614]
[1769366970718,0.01146434,87227.0,87214.0,0.22896614]
[1769366970924,0.06878464,87229.0,87214.0,0.22896614]
[1769366971126,0.01146447,87226.0,87214.0,0.22896614]
[1769366971532,0.01146447,87226.0,87214.0,0.22880808]
[1769366972396,0.0114646,87225.0,87214.0,0.22865004]
[1769366972825,0.01146434,87227.0,87214.0,0.22865004]
[1769366973041,0.22816279,87271.0,87213.0,0.00014174]
[1769366973042,0.09150522,87258.0,87226.0,0.22532702]
[1769366973263,0.01146144,87249.0,87230.0,0.22532702]
[1769366973474,0.08952966,87256.0,87228.0,0.22532702]
[1769366973475,0.01146184,87246.0,87228.0,0.22532702]
[1769366973690,0.01146197,87245.0,87228.0,0.22532702]
[1769366974144,0.01146223,87243.0,87228.0,0.22532702]
[1769366974357,0.01146184,87246.0,87228.0,0.22532702]
[1769366974563,0.01146144,87249.0,87229.0,0.22532702]
[1769366974775,0.01146184,87246.0,87229.0,0.22517471]
[1769366975029,0.22919197,87264.0,87229.0,0.22501677]
[1769366975030,0.01146263,87240.0,87229.0,0.22501677]
[1769366975244,0.01146263,87240.0,87218.0,0.2251219]
[1769366975485,0.01146328,87235.0,87219.0,0.22761853]
[1769366975692,0.01146289,87238.0,87219.0,0.22737058]
[1769366975897,0.01146289,87238.0,87220.0,0.00024795]
[1769366976112,0.01146289,87238.0,87220.0,0.00114693]
[1769366976332,0.01145882,87269.0,87241.0,1.05304697]
[1769366976536,0.01146,87260.0,87244.0,0.22737058]
[1769366976743,0.01145882,87269.0,87244.0,0.22737058]
[1769366976951,0.01145856,87271.0,87243.0,1.05304697]
[1769366976952,0.01145856,87271.0,87246.0,0.22721261]
[1769366977158,0.01145856,87271.0,87250.0,0.2272916]
[1769366977388,0.01145921,87266.0,87250.0,0.2272916]
[1769366977625,0.01145947,87264.0,87250.0,0.2272916]
[1769366977828,0.01146,87260.0,87250.0,0.2272916]
[1769366978040,0.01146026,87258.0,87241.0,0.2272916]
[1769366978216,0.01146039,87257.0,87241.0,0.2272916]
[1769366978450,0.01146066,87255.0,87241.0,0.2272916]
[1769366978861,0.01146039,87257.0,87241.0,0.2272916]
[1769366979070,0.01146066,87255.0,87241.0,0.2272916]
[1769366979280,0.06189847,87257.0,87237.0,0.10091454]
[1769366979504,0.05730481,87253.0,87233.0,0.17612]
[1769366979672,0.01146131,87250.0,87233.0,0.17612]
[1769366979894,0.01146105,87252.0,87233.0,0.17612]
[1769366980082,0.01146105,87252.0,87233.0,0.40566024]
[1769366980083,0.01146144,87249.0,87233.0,0.40566024]
[1769366980290,0.01146118,87251.0,87233.0,0.40566024]
[1769366980724,0.01146105,87252.0,87233.0,0.40566024]
[1769366981360,0.01146105,87252.0,87234.0,0.22954024]
[1769366981775,0.06189847,87255.0,87234.0,0.22954024]
[1769366982192,0.01146013,87259.0,87234.0,0.22954024]
[1769366982398,0.01146026,87258.0,87235.0,1.05304697]
[1769366982632,0.01146066,87255.0,87236.0,0.23178907]
[1769366983041,0.01146026,87258.0,87236.0,0.23178907]
[1769366983265,0.01146013,87259.0,87236.0,0.23178907]
[1769366983466,0.07335834,87261.0,87236.0,0.23178907]
[1769366983616,0.01146013,87259.0,87236.0,0.23178907]
[1769366983998,0.01146,87260.0,87236.0,0.23178907]
[1769366984202,0.01146,87260.0,87235.0,1.05304697]
[1769366984203,0.01145895,87268.0,87246.0,0.23403768]
[1769366984425,0.01145908,87267.0,87248.0,0.23403768]
[1769366984600,0.06189847,87268.0,87248.0,0.23403768]
[1769366984786,0.01145856,87271.0,87250.0,0.23403768]
[1769366984990,0.01145816,87274.0,87247.0,1.05304697]
[1769366985196,0.01145816,87274.0,87244.0,0.11237664]
[1769366985197,0.01145764,87278.0,87252.0,0.01146105]
[1769366985399,0.01145764,87278.0,87255.0,0.23403768]
[1769366985598,0.01145764,87278.0,87257.0,0.23286023]
[1769366985843,0.01145764,87278.0,87258.0,1.15396151]
[1769366986020,0.01145711,87282.0,87261.0,0.23344895]
[1769366986363,0.0114575,87279.0,87261.0,0.23344895]
[1769366986921,0.01145764,87278.0,87261.0,0.23344895]
[1769366987325,0.01145777,87277.0,87261.0,0.23344895]
[1769366987564,0.0114575,87279.0,87261.0,1.05304697]
[1769366987766,0.01145724,87281.0,87258.0,0.10091454]
[1769366987767,0.00014178,87282.0,87264.0,0.23569784]
[1769366987919,0.00014178,87282.0,87258.0,0.10091454]
[1769366987920,0.00014178,87282.0,87266.0,0.23569784]
[1769366988331,0.00014178,87282.0,87267.0,0.23569784]
[1769366989447,0.01159889,87282.0,87267.0,0.23569784]
[1769366989654,0.00014178,87282.0,87267.0,0.23569784]
[1769366989856,0.00014178,87282.0,87269.0,0.23569784]
[1769366990304,0.01145724,87281.0,87269.0,0.23569784]
[1769366990451,0.05728563,87282.0,87269.0,0.23569784]
[1769366990690,0.05728563,87282.0,87258.0,1.15396151]
[1769366990691,0.00139516,87269.0,87259.0,0.23569784]
[1769366990881,0.01145803,87275.0,87260.0,0.23569784]
[1769366991083,0.01145869,87270.0,87231.0,0.10091454]
[1769366991304,0.01145869,87270.0,87248.0,1.05304697]
[1769366991305,0.06875293,87269.0,87248.0,1.05304697]
[1769366991557,0.00079471,87274.0,87251.0,0.23569784]
[1769366991748,0.00079471,87274.0,87252.0,1.05304697]
[1769366991749,0.01145921,87266.0,87252.0,1.05304697]
[1769366991887,0.01145856,87271.0,87255.0,0.23569784]
[1769366992292,0.01145882,87269.0,87255.0,0.23569784]
[1769366992746,0.00079471,87275.0,87255.0,0.23569784]
[1769366992946,0.01145764,87278.0,87255.0,0.23569784]
[1769366993163,0.01145764,87278.0,87251.0,0.01146118]
[1769366993164,0.01145698,87283.0,87267.0,0.10091454]
[1769366993365,0.01145698,87283.0,87267.0,0.10075663]
[1769366993602,0.01145698,87283.0,87268.0,0.23794658]
[1769366994055,0.01145711,87282.0,87268.0,0.23794658]
[1769366994532,0.01145724,87281.0,87268.0,0.23808836]
[1769366994896,0.01145711,87282.0,87268.0,0.23808836]
[1769366995461,0.00597624,87307.0,87268.0,0.23808836]
[1769366995597,0.06873849,87288.0,87269.0,0.23794658]
[1769366995801,0.01145685,87284.0,87271.0,0.23794658]
[1769366996004,0.01145698,87283.0,87271.0,0.23794658]
[1769366996188,0.01145724,87281.0,87271.0,0.23794658]
[1769366996822,0.01145698,87283.0,87271.0,0.23794658]
[1769366997024,0.01145645,87287.0,87271.0,0.23794658]
[1769366997235,0.01145645,87287.0,87271.0,1.05304697]
[1769366997441,0.01145645,87287.0,87272.0,0.23794658]
[1769366997637,0.01145659,87286.0,87272.0,1.05304697]
[1769366997847,0.01145645,87287.0,87273.0,0.23794658]
[1769366998075,0.01145659,87286.0,87273.0,0.23794658]
[1769366998614,0.01145645,87287.0,87273.0,0.23794658]
[1769366998794,0.01145659,87286.0,87273.0,0.23568532]
[1769366998994,0.01145672,87285.0,87273.0,0.23568532]
[1769366999367,0.01145659,87286.0,87273.0,0.23552743]
[1769366999515,0.01145672,87285.0,87273.0,0.23536952]
[1769366999723,0.01145777,87277.0,87268.0,0.00014178]
[1769366999901,0.01145829,87273.0,87268.0,0.00014178]
[1769367000117,0.01145829,87273.0,87263.0,0.17604]
[1769367000118,0.01145856,87271.0,87263.0,0.17604]
[1769367000349,0.0001416,87271.0,87263.0,0.17604]
[1769367000758,0.0001416,87271.0,87263.0,0.40975182]
[1769367001115,0.0001416,87271.0,87263.0,0.17604]
[1769367001257,0.01145724,87281.0,87264.0,0.23371182]
[1769367001457,0.0121112,87284.0,87263.0,0.17604]
[1769367001458,0.01145685,87284.0,87265.0,1.05304697]
[1769367001663,0.0114558,87292.0,87276.0,1.05304697]
[1769367001865,0.3883,87311.0,87274.0,0.10091454]
[1769367001866,0.01145449,87302.0,87280.0,0.37683737]
[1769367002073,0.0114554,87295.0,87282.0,0.23146298]
[1769367002276,0.00014168,87302.0,87275.0,0.23146298]
[1769367002476,0.01145685,87284.0,87272.0,0.10091454]
[1769367002862,0.37683737,87300.0,87269.0,0.10091454]
[1769367003112,0.01145685,87284.0,87269.0,0.10091454]
[1769367003315,0.01145711,87282.0,87269.0,0.10091454]
[1769367003521,0.01145737,87280.0,87269.0,0.10091454]
[1769367003720,0.01145737,87280.0,87264.0,0.23146298]
[1769367003721,0.01145777,87277.0,87264.0,0.23146298]
[1769367003873,0.01145764,87278.0,87264.0,0.23146298]
[1769367004289,0.01145908,87267.0,87260.0,0.17604]
[1769367004501,0.01145869,87270.0,87261.0,0.10091454]
[1769367004710,0.01145921,87266.0,87260.0,0.17604]
[1769367004905,0.01145961,87263.0,87255.0,0.10091454]
[1769367005107,0.01145934,87265.0,87255.0,0.10091454]
[1769367005312,0.01145895,87268.0,87255.0,0.10091454]
[1769367005514,0.01145947,87264.0,87255.0,0.10138746]
[1769367005750,0.01145908,87267.0,87255.0,0.10138746]
[1769367005961,0.01145882,87269.0,87255.0,0.10138746]
[1769367006174,0.284741,87345.0,87255.0,0.10138746]
[1769367006175,0.01145934,87265.0,87255.0,0.22968733]
[1769367006373,0.01145908,87267.0,87255.0,0.22968733]
[1769367006586,0.05729338,87271.0,87255.0,0.22968733]
[1769367006787,0.01145869,87270.0,87255.0,0.22968733]
[1769367006997,0.0114579,87276.0,87256.0,0.22921441]
[1769367007233,0.01145764,87278.0,87257.0,0.22921441]
[1769367007436,0.01145829,87273.0,87257.0,0.22921441]
[1769367007644,0.0114579,87276.0,87257.0,0.22921441]
[1769367007862,0.01145777,87277.0,87257.0,0.22921441]
[1769367008480,0.01145645,87287.0,87268.0,0.22921441]
[1769367008658,0.01145632,87288.0,87271.0,1.05256062]
[1769367009012,0.01145593,87291.0,87272.0,0.22921441]
[1769367009423,0.01145619,87289.0,87272.0,0.22921441]
[1769367009643,0.01145593,87291.0,87272.0,0.22921441]
[1769367009861,0.01145593,87291.0,87284.0,1e-08]
[1769367010058,0.01145856,87271.0,87256.0,0.22696572]
[1769367010282,0.01145856,87271.0,87265.0,0.10091454]
[1769367010850,0.01145842,87272.0,87265.0,0.10091454]
[1769367011258,0.0572823,87287.0,87265.0,0.10091454]
[1769367011420,0.00014168,87287.0,87274.0,0.22696572]
[1769367011617,0.01159813,87287.0,87274.0,0.22696572]
[1769367011845,0.00014168,87287.0,87279.0,0.10091454]
[1769367012272,0.01145514,87297.0,87282.0,0.22696572]
[1769367012470,0.01145317,87312.0,87293.0,0.10091454]
[1769367012694,0.01145317,87312.0,87298.0,0.22696572]
[1769367013224,0.01145291,87314.0,87298.0,0.22696572]
[1769367013436,0.01145278,87315.0,87298.0,0.22696572]
[1769367013659,0.23267883,87324.0,87298.0,0.22680781]
[1769367013660,0.01145186,87322.0,87298.0,0.22680781]
[1769367013864,0.01145357,87309.0,87306.0,0.0098584]
[1769367014079,0.24413227,87310.0,87297.0,0.17604]
[1769367014298,0.01145396,87306.0,87297.0,0.17604]
[1769367014524,0.01145422,87304.0,87297.0,0.17604]
[1769367014949,0.01145422,87304.0,87293.0,0.00014168]
[1769367014950,0.01145527,87296.0,87293.0,0.00014168]
[1769367015173,0.05727753,87295.0,87293.0,0.00014168]
[1769367015400,0.0572777,87294.0,87293.0,0.00014168]
[1769367015619,0.0572777,87294.0,87274.0,0.04124]
[1769367015620,0.0114579,87276.0,87261.0,1.15415412]
[1769367015834,0.26252463,87292.0,87269.0,0.10091454]
[1769367016042,0.01145737,87280.0,87269.0,0.10091454]
[1769367016247,0.0114575,87279.0,87269.0,0.10091454]
[1769367016462,0.37683737,87280.0,87261.0,0.00047292]
[1769367016669,0.01145842,87272.0,87261.0,0.00047292]
[1769367016874,0.01145869,87270.0,87262.0,0.10091454]
[1769367017506,0.01145829,87273.0,87262.0,0.10091454]
[1769367017732,0.0114579,87276.0,87262.0,0.10091454]
[1769367017928,0.01145803,87275.0,87262.0,0.10091454]
[1769367018132,0.01145803,87275.0,87261.0,0.00047292]
[1769367018133,0.05729155,87273.0,87261.0,0.00047292]
[1769367018347,0.01145829,87273.0,87262.0,0.10091454]
[1769367018546,0.01145882,87269.0,87262.0,0.10091454]
[1769367018754,0.01145842,87272.0,87262.0,0.10091454]
[1769367018966,0.01145829,87273.0,87262.0,0.10091454]
[1769367019195,0.01145842,87272.0,87262.0,0.10091454]
[1769367019401,0.01145829,87273.0,87262.0,0.10091454]
[1769367019617,0.05729342,87271.0,87262.0,0.10091454]
[1769367019828,0.01145882,87269.0,87262.0,0.10091454]
[1769367020043,0.01146158,87248.0,87233.0,0.1745692]
[1769367020281,0.01146131,87250.0,87233.0,0.1747108]
[1769367020496,0.01146144,87249.0,87233.0,0.1747108]
[1769367020716,0.0114625,87241.0,87234.0,0.10091454]
[1769367021162,0.01146276,87239.0,87234.0,0.10091454]
[1769367021372,0.01146263,87240.0,87234.0,0.10091454]
[1769367021584,0.01146276,87239.0,87234.0,0.10091454]
[1769367021798,0.01146263,87240.0,87234.0,0.10091454]
[1769367022011,0.00014168,87234.0,87222.0,0.10091454]
[1769367022226,0.01146328,87235.0,87222.0,0.10091454]
[1769367022438,0.01146355,87233.0,87222.0,0.10091454]
[1769367022651,0.06878152,87233.0,87222.0,0.10091454]